bitfinex/quotes_BTCUSD_20220306
["timestamp","ask_amount","ask_price","bid_price","bid_amount"]
[1646528867190,0.20680951,39611.0,39605.0,0.15817748]
[1646528867994,0.00024468,39610.0,39605.0,0.15817748]
[1646528868893,0.20680951,39611.0,39605.0,0.15817748]
[1646528869092,0.00024468,39609.0,39605.0,0.15817748]
[1646528869548,0.20705419,39609.0,39605.0,0.15817748]
[1646528870140,0.20680951,39609.0,39605.0,0.15817748]
[1646528870340,0.2070578,39609.0,39605.0,0.15817748]
[1646528870542,0.2070578,39609.0,39602.0,0.001]
[1646528870740,0.20680951,39608.0,39602.0,0.001]
[1646528870939,0.20680951,39608.0,39601.0,0.179729]
[1646528871540,0.00024829,39607.0,39601.0,0.179729]
[1646528871741,0.00024829,39607.0,39605.0,0.16933336]
[1646528872542,0.20680951,39608.0,39601.0,0.179729]
[1646528872740,0.2070578,39608.0,39601.0,0.179729]
[1646528873586,0.2070578,39608.0,39603.0,0.166298]
[1646528873587,0.20680951,39608.0,39603.0,0.166298]
[1646528873983,0.00024444,39606.0,39603.0,0.166298]
[1646528874791,0.20680951,39609.0,39603.0,0.166298]
[1646528874989,0.20680951,39608.0,39603.0,0.166298]
[1646528875186,0.00024444,39606.0,39603.0,0.166298]
[1646528875390,0.20705395,39606.0,39603.0,0.166298]
[1646528875988,0.20680951,39606.0,39603.0,0.166298]
[1646528876388,0.00024444,39606.0,39603.0,0.166298]
[1646528877239,0.25824268,39610.0,39603.0,0.166298]
[1646528877544,0.0002447,39606.0,39603.0,0.166298]
[1646528878538,0.25824268,39608.0,39603.0,0.166298]
[1646528878739,0.0002447,39606.0,39603.0,0.166298]
[1646528878939,0.25824268,39608.0,39606.0,0.0002982]
[1646528880887,0.25824268,39608.0,39599.0,0.23205254]
[1646528881489,0.20700389,39605.0,39600.0,0.374898]
[1646528881888,0.20700389,39605.0,39602.0,0.17134984]
[1646528882087,0.20700389,39605.0,39600.0,0.374898]
[1646528882388,0.20700389,39604.0,39600.0,0.374898]
[1646528882789,0.20700389,39604.0,39599.0,0.20679254]
[1646528882988,0.20700389,39604.0,39599.0,0.4059679]
[1646528883187,0.20700389,39605.0,39599.0,0.4059679]
[1646528883390,0.31065732,39604.0,39598.0,0.00024473]
[1646528883692,0.25824268,39607.0,39598.0,0.00024473]
[1646528883693,0.20700389,39603.0,39598.0,0.00024473]
[1646528884545,0.20700389,39601.0,39597.0,0.01261]
[1646528884741,0.20700389,39601.0,39598.0,0.00024838]
[1646528885244,0.20700389,39602.0,39598.0,0.00024838]
[1646528885648,0.25824268,39604.0,39594.0,0.004]
[1646528885649,0.20700389,39601.0,39594.0,0.004]
[1646528885844,0.20700389,39601.0,39598.0,0.00024838]
[1646528885845,0.20700389,39599.0,39598.0,0.00024838]
[1646528886048,0.25927268,39600.0,39598.0,0.00024838]
[1646528886245,0.25824268,39599.0,39598.0,0.00024838]
[1646528886443,0.46203303,39600.0,39598.0,0.00024838]
[1646528886846,0.48729303,39600.0,39594.0,0.004]
[1646528887059,0.25824268,39596.0,39594.0,0.004]
[1646528887244,0.30874268,39596.0,39594.0,0.004]
[1646528887443,0.30874268,39596.0,39590.0,0.00099373]
[1646528887644,0.2070255,39594.0,39590.0,0.00099373]
[1646528888044,0.2070255,39594.0,39586.0,0.0218]
[1646528888286,0.2080555,39595.0,39590.0,0.0002445]
[1646528888487,0.2080555,39594.0,39590.0,0.0002445]
[1646528888686,0.2070255,39593.0,39590.0,0.0002445]
[1646528888985,0.2070255,39594.0,39590.0,0.0002445]
[1646528889287,0.2070255,39594.0,39586.0,0.0218]
[1646528889485,0.00103,39592.0,39590.0,0.0002445]
[1646528889687,0.2070255,39594.0,39590.0,0.0002445]
[1646528890085,0.00103,39592.0,39590.0,0.0002445]
[1646528890489,0.00103,39592.0,39586.0,0.0218]
[1646528890688,0.00103,39592.0,39589.0,0.0002445]
[1646528891287,0.0505,39596.0,39589.0,0.0002445]
[1646528891686,0.0505,39596.0,39586.0,0.0218]
[1646528891935,0.0505,39596.0,39591.0,0.00024476]
[1646528892136,0.00103,39594.0,39591.0,0.00024476]
[1646528892838,0.0505,39596.0,39590.0,0.16340183]
[1646528893041,0.0505,39596.0,39591.0,0.37514276]
[1646528893438,0.00014615,39597.0,39591.0,0.00024476]
[1646528894039,0.00014615,39597.0,39590.0,0.16340183]
[1646528894239,0.00014615,39597.0,39592.0,0.00024476]
[1646528895237,0.00014615,39597.0,39590.0,0.16340183]
[1646528895438,0.00014615,39597.0,39593.0,0.00024474]
[1646528896496,0.00014615,39597.0,39590.0,0.16340183]
[1646528896696,0.00014615,39597.0,39593.0,0.00024474]
[1646528897595,0.00014615,39597.0,39590.0,0.16340183]
[1646528897796,0.00014615,39597.0,39593.0,0.00024474]
[1646528898398,0.21274969,39596.0,39593.0,0.00024474]
[1646528898799,0.21274969,39596.0,39586.0,0.04706]
[1646528899000,0.21274969,39596.0,39593.0,0.00024474]
[1646528899443,0.00014615,39597.0,39593.0,0.00024474]
[1646528900042,0.00014615,39597.0,39586.0,0.04706]
[1646528900244,0.00014615,39597.0,39593.0,0.00024474]
[1646528900644,0.00103,39596.0,39593.0,0.00024474]
[1646528901349,0.00103,39596.0,39589.0,0.21436821]
[1646528901543,0.00103,39596.0,39593.0,0.00024474]
[1646528901743,0.00103,39596.0,39593.0,0.00016772]
[1646528902548,0.00014615,39597.0,39589.0,0.21436821]
[1646528902947,0.00014615,39597.0,39596.0,0.187786]
[1646528903221,0.00014615,39597.0,39596.0,0.563724]
[1646528903420,0.00014615,39597.0,39596.0,0.696404]
[1646528904415,0.00014615,39597.0,39596.0,0.8947139]
[1646528904620,0.2070255,39609.0,39599.0,0.401198]
[1646528904820,0.16376568,39610.0,39599.0,0.401198]
[1646528904821,0.16376568,39610.0,39601.0,0.401198]
[1646528905019,0.22470635,39612.0,39602.0,0.33591732]
[1646528905020,0.01768085,39612.0,39602.0,0.33591732]
[1646528905219,0.01768085,39612.0,39610.0,0.375938]
[1646528905920,0.01768085,39612.0,39609.0,0.16269704]
[1646528906114,0.01768085,39612.0,39607.0,0.31265732]
[1646528906941,0.01768085,39612.0,39607.0,0.002]
[1646528907143,0.01768085,39612.0,39607.0,0.31065732]
[1646528907345,0.01768085,39612.0,39607.0,0.1642073]
[1646528907555,0.0002612,39611.0,39607.0,0.1642073]
[1646528907743,0.0002612,39611.0,39608.0,0.375938]
[1646528907942,0.0002612,39611.0,39607.0,0.1642073]
[1646528908146,0.0002612,39611.0,39608.0,0.375938]
[1646528908548,0.01768085,39612.0,39607.0,0.1642073]
[1646528908745,0.0002612,39611.0,39605.0,0.375938]
[1646528908944,0.0002612,39611.0,39605.0,0.375749]
[1646528909744,0.01768085,39612.0,39608.0,0.19151199]
[1646528909945,0.00026121,39610.0,39609.0,0.375749]
[1646528911002,0.01768085,39612.0,39608.0,0.19151199]
[1646528911212,0.0002612,39611.0,39608.0,0.19151199]
[1646528911602,0.0002612,39611.0,39604.0,0.375749]
[1646528911804,0.0002612,39611.0,39605.0,0.002]
[1646528912004,0.0002612,39611.0,39606.0,0.375749]
[1646528912202,0.01768085,39612.0,39606.0,0.375749]
[1646528912404,0.00103,39614.0,39606.0,0.375749]
[1646528912405,0.00026121,39609.0,39606.0,0.375749]
[1646528912905,0.00019669,39609.0,39606.0,0.375749]
[1646528913504,0.00103,39614.0,39605.0,0.002]
[1646528913707,0.00103,39614.0,39603.0,0.25182947]
[1646528914108,0.31205724,39617.0,39603.0,0.25182947]
[1646528914109,0.375749,39616.0,39603.0,0.0535]
[1646528914305,0.00103,39612.0,39603.0,0.003]
[1646528914544,0.00103,39612.0,39604.0,0.18414883]
[1646528914741,0.00025264,39611.0,39603.0,0.003]
[1646528914944,0.00103,39608.0,39603.0,0.003]
[1646528915143,0.01867646,39608.0,39602.0,0.1173]
[1646528915342,0.01867646,39608.0,39600.0,0.1946]
[1646528915742,0.01764646,39608.0,39602.0,0.19065944]
[1646528915942,0.00025266,39606.0,39602.0,0.19065944]
[1646528916143,0.00025266,39606.0,39598.0,0.00025271]
[1646528916944,0.01764646,39608.0,39597.0,0.002]
[1646528917142,0.00025267,39604.0,39598.0,0.00025271]
[1646528917343,0.00025267,39604.0,39599.0,0.53288787]
[1646528917542,0.00025267,39604.0,39599.0,0.15713887]
[1646528918189,0.01764646,39608.0,39599.0,0.15713887]
[1646528918387,0.00024423,39603.0,39600.0,0.375749]
[1646528918988,0.00024423,39603.0,39602.0,0.375749]
[1646528919187,0.00024423,39603.0,39599.0,0.15713887]
[1646528919386,0.00103,39606.0,39599.0,0.15713887]
[1646528919593,0.00103,39606.0,39598.0,0.00024427]
[1646528919594,0.00024423,39603.0,39598.0,0.00024427]
[1646528920588,0.00103,39606.0,39596.0,0.003]
[1646528920792,0.00024423,39603.0,39598.0,0.00024427]
[1646528921195,0.375749,39602.0,39598.0,0.00024427]
[1646528921792,0.00103,39599.0,39587.0,0.1132]
[1646528922046,0.375749,39601.0,39598.0,0.00024483]
[1646528922540,0.376779,39599.0,39598.0,0.00024483]
[1646528922840,0.376779,39599.0,39588.0,0.31205724]
[1646528923041,0.00103,39599.0,39597.0,0.00024484]
[1646528923245,0.375749,39598.0,39597.0,0.00024484]
[1646528924043,0.375749,39598.0,39593.0,0.4111756]
[1646528924246,0.00103,39599.0,39596.0,0.00024484]
[1646528925245,0.00103,39599.0,39593.0,0.4111756]
[1646528925448,0.00103,39599.0,39596.0,0.0002448]
[1646528925690,0.00103,39599.0,39597.0,0.375749]
[1646528925888,0.00024476,39603.0,39598.0,0.375749]
[1646528926090,0.00024476,39603.0,39596.0,0.0002448]
[1646528926294,0.00024476,39603.0,39599.0,0.15954991]
[1646528926486,0.002,39605.0,39600.0,0.375749]
[1646528926686,0.002,39605.0,39599.0,0.15954991]
[1646528926891,0.002,39605.0,39602.0,0.20464589]
[1646528927889,0.00010858,39605.0,39602.0,0.20464589]
[1646528928093,0.00010858,39605.0,39603.0,0.375749]
[1646528928986,0.01764646,39608.0,39602.0,0.20464589]
[1646528929188,0.00026127,39606.0,39602.0,0.20464589]
[1646528930046,0.01964646,39608.0,39602.0,0.20464589]
[1646528930447,0.00026127,39606.0,39602.0,0.20464589]
[1646528931246,0.01764646,39608.0,39602.0,0.20464589]
[1646528931650,0.00026127,39606.0,39598.0,0.00026132]
[1646528932547,0.01764646,39608.0,39598.0,0.1964869]
[1646528932745,0.00026128,39604.0,39598.0,0.19674822]
[1646528933696,0.31205724,39607.0,39598.0,0.1964869]
[1646528933896,0.00025251,39603.0,39598.0,0.19673945]
[1646528934096,0.00025251,39603.0,39598.0,0.00025255]
[1646528934497,0.00025251,39603.0,39598.0,0.00018684]
[1646528934997,0.00103,39604.0,39597.0,0.17510227]
[1646528935198,0.00103,39604.0,39594.0,0.21974429]
[1646528936935,0.00103,39604.0,39592.0,0.1149]
[1646528937131,0.00103,39604.0,39595.0,0.19027632]
[1646528937532,0.00103,39604.0,39597.0,0.00026132]
[1646528937733,0.375749,39603.0,39597.0,0.00026132]
[1646528938033,0.00103,39604.0,39597.0,0.00026132]
[1646528938232,0.375749,39603.0,39597.0,0.00026132]
[1646528938432,0.00103,39604.0,39597.0,0.00026132]
[1646528938633,0.375749,39603.0,39595.0,0.19027632]
[1646528938832,0.31205724,39602.0,39598.0,0.00026131]
[1646528939033,0.00103,39604.0,39598.0,0.00026131]
[1646528939233,0.375749,39603.0,39598.0,0.00026131]
[1646528939436,0.33731724,39602.0,39598.0,0.00026131]
[1646528939639,0.00103,39599.0,39598.0,0.00020131]
[1646528939838,0.427279,39599.0,39586.0,0.0218]
[1646528940034,0.00103,39591.0,39590.0,0.00104545]
[1646528940236,0.37372288,39591.0,39590.0,0.00104545]
[1646528941091,0.37372288,39591.0,39586.0,0.0218]
[1646528942197,0.117,39595.0,39586.0,0.0218]
[1646528942198,0.002,39595.0,39590.0,0.375891]
[1646528942397,0.002,39595.0,39589.0,0.21608603]
[1646528942593,0.002,39595.0,39589.0,0.42717807]
[1646528943192,0.002,39595.0,39590.0,0.31205724]
[1646528943394,0.18728894,39603.0,39586.0,0.47759003]
[1646528943600,0.373803,39602.0,39590.0,0.00025258]
[1646528943791,0.31205724,39601.0,39590.0,0.00025258]
[1646528943991,0.002,39596.0,39590.0,0.00025258]
[1646528944655,0.373803,39595.0,39589.0,0.17734088]
[1646528944851,0.373803,39594.0,39591.0,0.00025257]
[1646528945251,0.373803,39592.0,39591.0,0.00025257]
[1646528945453,0.38781724,39600.0,39591.0,0.00025257]
[1646528945654,0.399063,39599.0,39591.0,0.00025257]
[1646528945851,0.373803,39597.0,39586.0,0.2718]
[1646528946053,0.373803,39595.0,39590.0,0.00024435]
[1646528947062,0.003,39596.0,39586.0,0.0218]
[1646528947063,0.02526,39592.0,39586.0,0.0218]
[1646528947261,0.81112024,39592.0,39591.0,0.00024435]
[1646528947455,0.86162024,39592.0,39591.0,0.00024435]
[1646528948187,0.86162024,39592.0,39586.0,0.0218]
[1646528948388,0.02526,39590.0,39586.0,0.0218]
[1646528948587,0.399063,39589.0,39586.0,0.0218]
[1646528949187,0.373803,39589.0,39586.0,0.0218]
[1646528949587,0.373803,39589.0,39586.0,0.02204545]
[1646528950589,0.31205724,39588.0,39586.0,0.0218]
[1646528950788,0.373803,39587.0,39586.0,0.02204545]
[1646528951789,0.373803,39587.0,39586.0,0.0218]
[1646528954542,0.37368865,39587.0,39586.0,0.0218]
[1646528956191,0.37368865,39587.0,39586.0,0.2718]
[1646528956795,0.01703588,39590.0,39586.0,0.2718]
[1646528956992,0.398946,39589.0,39586.0,0.2718]
[1646528957189,0.398946,39589.0,39586.0,0.44425532]
[1646528957890,0.398946,39589.0,39586.0,0.44450066]
[1646528958095,0.373686,39589.0,39586.0,0.44450066]
[1646528958890,0.373686,39589.0,39586.0,0.44425532]
[1646528959090,0.373686,39589.0,39586.0,0.44450066]
[1646528960141,0.373686,39589.0,39586.0,0.44425532]
[1646528960341,0.373686,39589.0,39586.0,0.44450066]
[1646528961543,0.01703588,39590.0,39586.0,0.44450066]
[1646528961742,0.373686,39587.0,39586.0,0.44450066]
[1646528961944,0.01703588,39590.0,39586.0,0.44450066]
[1646528962644,0.01703588,39590.0,39587.0,0.375906]
[1646528962846,0.01703588,39590.0,39589.0,0.20942036]
[1646528963312,0.01703588,39590.0,39589.0,0.58532636]
[1646528963512,0.1128,39599.0,39589.0,0.20942036]
[1646528963715,0.373686,39598.0,39592.0,0.19901729]
[1646528963911,0.01711161,39600.0,39592.0,0.19901729]
[1646528964114,0.373686,39599.0,39592.0,0.19901729]
[1646528964311,0.373686,39598.0,39592.0,0.19901729]
[1646528965108,0.373686,39598.0,39593.0,0.00024532]
[1646528965512,0.373686,39597.0,39593.0,0.00024532]
[1646528965813,0.373686,39598.0,39593.0,0.00024532]
[1646528966215,0.68574324,39597.0,39586.0,0.0218]
[1646528966413,0.68574324,39597.0,39594.0,0.00024532]
[1646528966414,0.373686,39596.0,39594.0,0.00024532]
[1646528967354,0.373686,39596.0,39593.0,0.25]
[1646528967555,0.373686,39596.0,39593.0,0.25024532]
[1646528967854,0.373686,39596.0,39593.0,0.00024532]
[1646528968557,0.373686,39595.0,39587.0,0.20442038]
[1646528968754,0.373686,39598.0,39593.0,0.00024532]
[1646528969155,0.373686,39596.0,39593.0,0.00024532]
[1646528969753,0.32916885,39600.0,39589.0,0.1716249]
[1646528969954,0.379686,39599.0,39593.0,0.00024532]
[1646528970154,0.31205724,39598.0,39593.0,0.00024532]
[1646528970354,0.373686,39597.0,39593.0,0.00024532]
[1646528970989,0.373686,39597.0,39589.0,0.1716249]
[1646528971193,0.373686,39597.0,39593.0,0.00024532]
[1646528972194,0.373686,39597.0,39589.0,0.1716249]
[1646528972392,0.49261358,39600.0,39593.0,0.00024532]
[1646528972592,0.373686,39599.0,39593.0,0.00024532]
[1646528972793,0.31205724,39598.0,39593.0,0.00024532]
[1646528972993,0.373686,39597.0,39593.0,0.00024532]
[1646528973394,0.373686,39597.0,39589.0,0.1716249]
[1646528973592,0.32916885,39600.0,39593.0,0.00024532]
[1646528973796,0.373686,39599.0,39593.0,0.00024532]
[1646528974642,0.373686,39599.0,39589.0,0.1716249]
[1646528974941,0.01711161,39600.0,39594.0,0.00024531]
[1646528975140,0.18055634,39600.0,39594.0,0.00024531]
[1646528975439,0.01711161,39600.0,39594.0,0.00024531]
[1646528975637,0.01711161,39600.0,39594.0,0.00016197]
[1646528975838,0.01711161,39600.0,39587.0,0.20442038]
[1646528976038,0.01711161,39600.0,39595.0,0.00024531]
[1646528976238,0.1000333,39596.0,39595.0,0.00024531]
[1646528976441,0.01711161,39600.0,39597.0,0.2000666]
[1646528976639,0.02637001,39598.0,39597.0,0.2000666]
[1646528976839,0.40005601,39598.0,39597.0,0.2000666]
[1646528977239,0.373686,39598.0,39597.0,0.2000666]
[1646528977641,0.01711161,39600.0,39597.0,0.2000666]
[1646528977840,0.01711161,39600.0,39598.0,0.20320694]
[1646528978041,0.01711161,39600.0,39599.0,0.1784904]
[1646528978690,0.006,39604.0,39599.0,0.1784904]
[1646528979290,0.45253173,39609.0,39599.0,0.1734904]
[1646528979490,0.373686,39608.0,39599.0,0.1734904]
[1646528979693,0.00024527,39603.0,39599.0,0.1734904]
[1646528980691,0.373686,39606.0,39599.0,0.1734904]
[1646528980891,0.00024527,39603.0,39599.0,0.1734904]
[1646528982938,0.373686,39602.0,39599.0,0.1734904]
[1646528983141,0.001,39607.0,39599.0,0.1734904]
[1646528983343,0.00024527,39603.0,39599.0,0.1734904]
[1646528984144,0.00024527,39603.0,39598.0,0.20320694]
[1646528984145,0.001,39605.0,39598.0,0.20320694]
[1646528984543,0.00024527,39603.0,39598.0,0.20320694]
[1646528985146,0.00024527,39603.0,39600.0,0.17277355]
[1646528985346,0.45253173,39609.0,39600.0,0.17277355]
[1646528985546,0.373686,39608.0,39600.0,0.17277355]
[1646528985795,0.00024527,39603.0,39600.0,0.17277355]
[1646528986191,0.373686,39602.0,39600.0,0.17277355]
[1646528986393,0.00024527,39603.0,39600.0,0.17277355]
[1646528986594,0.3114987,39607.0,39598.0,0.20320694]
[1646528986595,0.373686,39602.0,39598.0,0.20320694]
[1646528986794,0.00024527,39603.0,39600.0,0.25]
[1646528986996,0.373686,39602.0,39600.0,0.25]
[1646528987193,0.00024527,39603.0,39600.0,0.25]
[1646528987404,0.373686,39602.0,39600.0,0.25]
[1646529000896,0.373686,39602.0,39600.0,0.245]
[1646529004843,0.6851847,39601.0,39600.0,0.245]
[1646529005944,0.84900606,39601.0,39600.0,0.245]
[1646529006842,0.84900606,39601.0,39600.0,0.22050001]
[1646529007047,0.87426606,39601.0,39600.0,0.1749179]
[1646529007246,0.92476606,39601.0,39600.0,0.1749179]
[1646529008890,1.42608864,39601.0,39600.0,0.1749179]
[1646529009088,1.52608864,39601.0,39600.0,0.1749179]
[1646529009489,1.25498936,39601.0,39600.0,0.1749179]
[1646529009690,0.398946,39598.0,39597.0,0.2000666]
[1646529009889,1.01878735,39598.0,39597.0,0.2000666]
[1646529010391,0.87206762,39598.0,39597.0,0.2000666]
[1646529010992,1.01877179,39598.0,39597.0,0.2000666]
[1646529011190,0.70824626,39598.0,39597.0,0.2000666]
[1646529011389,1.18259315,39598.0,39597.0,0.2000666]
[1646529011591,0.87206762,39598.0,39597.0,0.2000666]
[1646529011945,0.87232047,39598.0,39597.0,0.2000666]
[1646529012147,1.182846,39598.0,39597.0,0.2000666]
[1646529012546,0.87232047,39598.0,39597.0,0.2000666]
[1646529012750,1.182846,39598.0,39597.0,0.2000666]
[1646529012949,1.182846,39598.0,39597.0,0.19993002]
[1646529013748,0.87232047,39598.0,39597.0,0.19993002]
[1646529015997,1.182846,39598.0,39597.0,0.19993002]
[1646529016196,1.282846,39598.0,39597.0,0.19993002]
[1646529017593,1.282846,39598.0,39597.0,0.44993002]
[1646529018397,0.97232047,39598.0,39597.0,0.44993002]
[1646529020658,0.63776021,39598.0,39597.0,0.44993002]
[1646529020963,0.373686,39598.0,39597.0,0.44993002]
[1646529021259,0.53750736,39598.0,39597.0,0.44993002]
[1646529021458,0.373686,39598.0,39597.0,0.44993002]
[1646529033905,0.37361785,39598.0,39597.0,0.44993002]
[1646529034304,0.37361785,39598.0,39597.0,0.25]
[1646529044664,0.47434689,39601.0,39598.0,0.17883759]
[1646529044867,0.31052553,39601.0,39598.0,0.17883759]
[1646529045064,0.31052553,39601.0,39598.0,0.3852038]
[1646529045798,0.31052553,39602.0,39598.0,0.3852038]
[1646529045997,0.31052553,39601.0,39598.0,0.3852038]
[1646529047597,0.31052553,39602.0,39598.0,0.3852038]
[1646529047998,0.31052553,39601.0,39598.0,0.3852038]
[1646529050756,0.31052553,39601.0,39598.0,0.17883759]
[1646529051755,0.25884048,39599.0,39598.0,0.17883759]
[1646529051963,0.31052553,39600.0,39598.0,0.17883759]
[1646529052356,0.31652553,39600.0,39598.0,0.17883759]
[1646529053605,0.31052553,39600.0,39598.0,0.17883759]
[1646529055514,0.31052553,39599.0,39598.0,0.17883759]
[1646529056510,0.31052553,39600.0,39598.0,0.17883759]
[1646529058350,0.31052553,39599.0,39598.0,0.17883759]
[1646529061398,0.62201001,39599.0,39598.0,0.17883759]
[1646529061799,0.31052553,39599.0,39598.0,0.17883759]
[1646529062001,0.47434689,39600.0,39598.0,0.17883759]
[1646529062199,0.31052553,39600.0,39598.0,0.17883759]
[1646529062799,0.31052553,39599.0,39598.0,0.17883759]
[1646529065547,0.5261193,39601.0,39598.0,0.17883759]
[1646529065747,0.67378242,39600.0,39598.0,0.17883759]
[1646529066147,0.36229794,39600.0,39598.0,0.17883759]
[1646529066449,0.36229794,39600.0,39598.0,0.17875762]
[1646529068700,0.31071393,39599.0,39598.0,0.17875762]
[1646529072348,0.31071393,39600.0,39598.0,0.17875762]
[1646529072550,0.31071393,39599.0,39598.0,0.17875762]
[1646529073952,0.30571393,39599.0,39598.0,0.17875762]
[1646529078295,0.36229794,39602.0,39598.0,0.17875762]
[1646529079095,0.67378242,39601.0,39598.0,0.17875762]
[1646529079567,0.36229794,39600.0,39598.0,0.17875762]
[1646529079769,0.31148448,39599.0,39598.0,0.17875762]
[1646529080365,0.67378242,39599.0,39598.0,0.17875762]
[1646529080571,0.36229794,39600.0,39598.0,0.17875762]
[1646529081375,0.67378242,39599.0,39598.0,0.17875762]
[1646529081867,0.36229794,39599.0,39598.0,0.17875762]
[1646529084500,0.36729794,39601.0,39598.0,0.17875762]
[1646529085701,0.36229794,39600.0,39598.0,0.17875762]
[1646529086301,0.36229794,39601.0,39598.0,0.17875762]
[1646529086501,0.31070039,39599.0,39598.0,0.17875762]
[1646529088554,0.36929794,39601.0,39598.0,0.17875762]
[1646529088752,0.36229794,39600.0,39598.0,0.17875762]
[1646529091300,0.006,39604.0,39598.0,0.17875762]
[1646529091301,0.36229794,39601.0,39598.0,0.17875762]
[1646529091703,0.67378242,39600.0,39598.0,0.17875762]
[1646529091903,0.04551259,39599.0,39598.0,0.17875762]
[1646529094451,0.04551259,39599.0,39598.0,0.17868063]
[1646529095052,0.04550971,39599.0,39598.0,0.17868063]
[1646529095453,0.04550913,39599.0,39598.0,0.17868063]
[1646529098058,0.35699361,39599.0,39598.0,0.17868063]
[1646529098308,0.71929155,39599.0,39598.0,0.17868063]
[1646529098497,0.40780707,39599.0,39598.0,0.17868063]
[1646529100599,0.71929155,39599.0,39598.0,0.17868063]
[1646529100802,0.58528547,39599.0,39598.0,0.17868063]
[1646529100999,0.63578547,39599.0,39598.0,0.17868063]
[1646529105246,0.32430099,39599.0,39598.0,0.17868063]
[1646529107029,0.22430099,39599.0,39598.0,0.17868063]
[1646529107201,0.32430099,39599.0,39598.0,0.17868063]
[1646529108202,0.22430099,39599.0,39598.0,0.17868063]
[1646529108403,0.32430099,39599.0,39598.0,0.17868063]
[1646529108603,0.55838845,39599.0,39598.0,0.17868063]
[1646529108802,0.50788845,39599.0,39598.0,0.17868063]
[1646529109850,0.14550913,39599.0,39598.0,0.17868063]
[1646529110553,0.60186276,39599.0,39598.0,0.17868063]
[1646529110754,0.29037828,39599.0,39598.0,0.17868063]
[1646529111150,0.50186276,39599.0,39598.0,0.17868063]
[1646529111349,0.60186276,39599.0,39598.0,0.17868063]
[1646529112550,0.29037828,39599.0,39598.0,0.17868063]
[1646529112751,0.19037828,39599.0,39598.0,0.17868063]
[1646529113399,0.50186276,39599.0,39598.0,0.17868063]
[1646529113602,0.19037828,39599.0,39598.0,0.17868063]
[1646529113998,0.50186276,39599.0,39598.0,0.17868063]
[1646529114202,0.60186276,39599.0,39598.0,0.17868063]
[1646529114401,0.29037828,39599.0,39598.0,0.17868063]
[1646529115399,0.04550913,39599.0,39597.0,0.25]
[1646529115599,0.04552007,39598.0,39597.0,0.25]
[1646529115799,0.14552007,39598.0,39597.0,0.24990999]
[1646529116803,0.50788127,39598.0,39597.0,0.24990999]
[1646529117249,0.14552007,39598.0,39597.0,0.24990999]
[1646529118251,0.45700455,39598.0,39597.0,0.24990999]
[1646529118551,0.81936575,39598.0,39597.0,0.24990999]
[1646529118951,0.50788127,39598.0,39597.0,0.24990999]
[1646529119354,0.14552007,39598.0,39597.0,0.24990999]
[1646529119551,0.45700455,39598.0,39597.0,0.15952988]
[1646529119752,0.1,39598.0,39597.0,0.15952988]
[1646529119952,0.14550798,39598.0,39597.0,0.15952988]
[1646529121227,0.81870166,39598.0,39597.0,0.15952988]
[1646529121427,0.50786918,39598.0,39597.0,0.15952988]
[1646529122226,0.81870166,39598.0,39597.0,0.15952988]
[1646529122924,0.60659604,39598.0,39597.0,0.15952988]
[1646529123124,0.77085061,39598.0,39597.0,0.15952988]
[1646529123326,0.65709604,39598.0,39597.0,0.15952988]
[1646529123525,0.65709273,39598.0,39597.0,0.15952988]
[1646529124328,0.65709273,39598.0,39594.0,0.00024536]
[1646529124329,0.9,39597.0,39594.0,0.00024536]
[1646529124584,0.11129238,39595.0,39594.0,0.00024536]
[1646529124875,0.57236447,39595.0,39594.0,0.00024535]
[1646529125077,0.62286447,39595.0,39594.0,0.00024535]
[1646529125277,0.72286447,39595.0,39594.0,0.00024535]
[1646529125478,1.19478232,39595.0,39594.0,0.00024535]
[1646529125780,1.53421258,39595.0,39594.0,8.664e-05]
[1646529125979,0.06346379,39593.0,39580.0,0.113]
[1646529126178,0.36247022,39588.0,39587.0,0.00098157]
[1646529126382,0.11129801,39588.0,39587.0,0.00098157]
[1646529126577,0.52062403,39588.0,39587.0,0.00098157]
[1646529126782,0.52062263,39588.0,39587.0,0.00098157]
[1646529127184,0.52062263,39588.0,39580.0,0.113]
[1646529127379,0.77042782,39587.0,39580.0,0.113]
[1646529127781,0.45982602,39587.0,39576.0,0.1941]
[1646529128405,0.45982602,39587.0,39575.0,0.01261]
[1646529128406,0.92526,39586.0,39575.0,0.01261]
[1646529128605,0.2070446,39578.0,39575.0,0.01261]
[1646529128806,0.2070446,39577.0,39575.0,0.01261]
[1646529129003,0.2575446,39577.0,39575.0,0.01261]
[1646529129202,0.3575446,39577.0,39575.0,0.01261]
[1646529129402,0.3575446,39577.0,39575.0,0.25]
[1646529130404,0.04554425,39576.0,39575.0,0.25]
[1646529130803,0.3070446,39579.0,39576.0,0.0016694]
[1646529131003,0.07104724,39577.0,39576.0,0.0016694]
[1646529131202,0.12154724,39577.0,39576.0,0.0016694]
[1646529131702,0.12154634,39577.0,39576.0,0.0016694]
[1646529131950,0.12154544,39577.0,39576.0,0.0016694]
[1646529132155,0.12154454,39577.0,39576.0,0.0016694]
[1646529133357,0.2,39575.0,39569.0,0.00104778]
[1646529133558,0.30575402,39574.0,39569.0,0.00104778]
[1646529133756,0.1,39573.0,39569.0,0.00104778]
[1646529133953,0.40645182,39572.0,39569.0,0.00104778]
[1646529134356,0.1,39571.0,39565.0,0.0011]
[1646529134555,0.0505,39570.0,39569.0,0.00026193]
[1646529135457,0.0505,39570.0,39569.0,0.00126193]
[1646529135739,0.35584094,39570.0,39569.0,0.001]
[1646529136138,0.45584094,39570.0,39569.0,0.001]
[1646529138347,0.62555669,39570.0,39569.0,0.001]
[1646529138741,0.63818669,39570.0,39569.0,0.001]
[1646529138941,0.61292669,39570.0,39569.0,0.001]
[1646529139143,0.77718126,39570.0,39569.0,0.001]
[1646529139456,0.82724126,39570.0,39569.0,0.001]
[1646529139754,0.52190032,39570.0,39569.0,0.0004616]
[1646529139955,0.52190032,39570.0,39568.0,0.00024467]
[1646529140158,0.19445575,39569.0,39568.0,0.00024467]
[1646529140356,0.26431457,39570.0,39569.0,0.05554425]
[1646529140558,0.61905231,39570.0,39569.0,0.05554425]
[1646529140758,0.47165146,39570.0,39569.0,0.05554425]
[1646529140956,0.63590603,39570.0,39569.0,0.05554425]
[1646529141157,0.47165146,39570.0,39569.0,0.05554425]
[1646529141362,0.63590603,39570.0,39569.0,0.05554425]
[1646529141562,0.47165146,39570.0,39569.0,0.05554425]
[1646529141763,0.63590603,39570.0,39569.0,0.05554425]
[1646529142462,0.73590603,39570.0,39569.0,0.05554425]
[1646529142663,0.43166829,39570.0,39569.0,0.05554425]
[1646529142864,0.26741372,39570.0,39569.0,0.05554425]
[1646529143519,0.16741372,39570.0,39569.0,0.05554425]